Cogmind - Beta 11 @@@ ROGUE MODE // 2022.04.05 @ 16:28:51 Player: youngster Result: Destroyed by D-53 Grenadier with Mini Grenade Launcher Performance ------------- Evolutions (0) 0 Regions Visited (4) 800 Robots Destroyed (30) 150 Value Destroyed (731) 731 Prototype IDs (14) 280 Alien Tech Used (0) 0 Bonus (0) 0 TOTAL SCORE: 1961 Bonus ------- None Cogmind --------- Core Integrity 0/250 Matter 300/300 Energy 83/100 System Corruption 4% Temperature Cool (0) Movement Core (50) Location -9/Mines Parts ------- > --- POWER (1) -------- (None) > --- PROPULSION (2) --- (None) > --- UTILITY (2) ------ (None) > --- WEAPON (2) ------- (None) > --- INVENTORY (5) ---- Fission Core Light Treads High-capacity Matter Pod (200) Improved Targeting Computer Assault Rifle Peak State ------------ > --- POWER ------------ Light Nuclear Core > --- PROPULSION ------- Light Treads Light Treads > --- UTILITY ---------- High-capacity Storage Unit Light Armor Plating > --- WEAPON ----------- EM Shotgun Assault Rifle > --- INVENTORY -------- Nuclear Core Reinforced Deuterium Engine Fission Core Light Treads Light Treads Light Treads Light Treads Compact Wheel High-capacity Matter Pod High-capacity Matter Pod Transport Network Coupler Improved Targeting Computer EM Pulse Gun EM Shotgun EM Shotgun Assault Rifle Datajack Enhanced Flamer [Rating: 13] Favorites ----------- Power Ion Engine Engine Ion Engine Power Core Light Nuclear Core Propulsion Light Treads Treads Light Treads Wheel Compact Wheel Utility Light Armor Plating Device Seismic Detector Storage High-capacity Storage Unit Protection Light Armor Plating Weapon Assault Rifle Energy Gun EM Pulse Gun Ballistic Gun Assault Rifle Special Weapon Enhanced Flamer Special Melee Weapon Datajack Build | -11 -10 -10 -10 -9 ------- Run | Scr Mat Min Exi Min Slots Evolved . | . . . . . Power . | . . . . . Propulsion . | . . . . . Utility . | . . . . . Weapon . | . . . . . Parts Attached 34 | 6 11 11 4 2 Power 2 | 1 . . 1 . Engine 1 | 1 . . . . Core 1 | . . . 1 . Reactor . | . . . . . Propulsion 5 | 2 . 3 . . Treads 4 | 2 . 2 . . Leg . | . . . . . Wheel 1 | . . 1 . . Hover . | . . . . . Flight . | . . . . . Utility 9 | 1 5 3 . . Device 1 | . . 1 . . Storage 4 | 1 3 . . . Processor . | . . . . . Hackware . | . . . . . Protection 4 | . 2 2 . . Artifact . | . . . . . Weapon 18 | 2 6 5 3 2 Energy Gun 5 | 1 1 1 . 2 Energy Cannon . | . . . . . Ballistic Gun 11 | 1 5 3 2 . Ballistic Cannon . | . . . . . Launcher . | . . . . . Special Weapon 1 | . . 1 . . Impact Weapon . | . . . . . Slashing Weapon . | . . . . . Piercing Weapon . | . . . . . Special Melee Weapon 1 | . . . 1 . Unidentified Prototypes . | . . . . . Parts Lost 8 | . . 5 . 3 Power 2 | . . 1 . 1 Propulsion 1 | . . 1 . . Utility 3 | . . 2 . 1 Weapon 2 | . . 1 . 1 Highest Loss Streak 3 | . . 3 . 3 To Critical Strikes . | . . . . . Average Slot Usage (%) 95 | . 99 99 72 93 Engine 11 | . 14 13 . . Treads 27 | . 28 27 28 26 Device 1 | . . 5 . . Storage 13 | . 14 14 14 13 Protection 11 | . 13 8 14 13 Energy Gun 1 | . 1 1 . 2 Ballistic Gun 21 | . 26 19 2 24 Special Weapon 2 | . . 7 . . Special Melee Weapon 1 | . . . 10 . Naked Turns 8 | . . . . 8 Heaviest Build 53 | 14 52 53 52 52 Greatest Support 40 | 40 40 40 40 40 Greatest Overweight (x) 3 | . 1 3 1 1 Average Overweight (x) . | . . 1 1 . Largest Inventory Capacity 20 | 8 20 20 20 20 Average Capacity 16 | 7 13 20 20 19 Most Carried 20 | 3 20 20 20 18 Average Carried 15 | 1 12 19 18 17 Final Capacity 20 | 8 20 20 20 5 Final Carried 20 | 3 20 15 18 5 Class Distribution -------------------- 100% | Mutant Dominant Class ---------------- Mutant | -10/Materials Mutant | -10/Mines Mutant | -10/Exiles Mutant | -9/Mines Resources | -11 -10 -10 -10 -9 ----------- Run | Scr Mat Min Exi Min Matter Collected 1339 | 220 583 376 96 64 Remotely . | . . . . . Salvage Created 1107 | . 660 421 . 26 Parts 63 | . 41 22 . . Haulers Intercepted 2 | . 2 . . . Recyclers Shooed 7 | . 5 2 . . Parts Field Recycled . | . . . . . Retrieved Matter . | . . . . . Parts Self-Destructed . | . . . . . Prevented . | . . . . . Kills | -11 -10 -10 -10 -9 ------- Run | Scr Mat Min Exi Min Combat Hostiles Destroyed 24 | . 14 8 . 2 Guns 22 | . 13 8 . 1 AOE 2 | . 1 . . 1 Classes Destroyed 9 | . 5 4 . . Worker 1 | . . 1 . . Tunneler 2 | . . 2 . . Hauler 2 | . 2 . . . Recycler 2 | . . 2 . . Operator 1 | . 1 . . . Watcher 1 | . 1 . . . Swarmer 3 | . 3 . . . Grunt 18 | . 11 7 . . Assembled 3 | . . 1 . 2 Best Kill Streak 4 | . 3 4 . 1 Combat Bots Only 3 | . 3 2 . 1 Max Kills in Single Turn 2 | . 2 1 . 1 Gunslinging 1 | . 1 . . . Exploded 1 | . 1 . . 1 Melee . | . . . . . Uniques/NPCs Destroyed . | . . . . . Combat | -11 -10 -10 -10 -9 -------- Run | Scr Mat Min Exi Min Damage Taken 1637 | . 726 425 . 486 Core 251 | . 115 58 . 78 Absorbed by Shields . | . . . . . Regen/Repaired (Parts) 134 | . 134 . . . Core Remaining (%) 100 | 100 . . . . Volleys Fired 106 | . 65 35 . 6 Largest 2 | . 2 2 . 2 Hottest 100 | . 60 100 . 85 Shots Fired 202 | . 127 64 . 11 Gun 197 | . 127 59 . 11 Cannon . | . . . . . Launcher . | . . . . . Special 5 | . . 5 . . Kinetic 166 | . 110 49 . 7 Thermal 5 | . . 5 . . Explosive . | . . . . . Electromagnetic 31 | . 17 10 . 4 Robot Hit Streak 21 | . 14 21 . 4 Robot Miss Streak 4 | . 4 3 . 3 Penetration Max . | . . . . . Secondary Targets 3 | . 2 1 . . Max Gunslinging Chain 1 | . 1 1 . . Shots Hit Robots 146 | . 87 50 4 5 Core Hits 59 | . 33 22 . 4 Critical Kills . | . . . . . Critical Parts Destroyed 1 | . 1 . . . Critical Strikes 3 | . 2 1 . . Burn 1 | . . 1 . . Destroy 1 | . 1 . . . Corrupt 1 | . 1 . . . Melee Attacks 4 | . . . 4 . Impact . | . . . . . Slashing . | . . . . . Piercing . | . . . . . Sneak Attacks 4 | . . . 4 . Combat Hostiles . | . . . . . Follow-up Attacks . | . . . . . Damage Inflicted 1985 | . 1177 733 . 75 Guns 1786 | . 1101 610 . 75 Cannons . | . . . . . Explosions 117 | . 39 78 . . Melee . | . . . . . Ramming 38 | . 37 1 . . Kinetic 1463 | . 942 487 . 34 Thermal 161 | . 39 122 . . Explosive . | . . . . . Electromagnetic 323 | . 159 123 . 41 Impact . | . . . . . Slashing . | . . . . . Piercing . | . . . . . Highest Corruption 4 | . 4 4 4 4 Average Corruption 3 | . 3 4 4 4 Corruption Purged . | . . . . . Corruption Blocked . | . . . . . Effects 60 | . 17 29 10 4 Message Errors 10 | . 4 3 3 . Matter Fused 19 | . 9 6 4 . Heat Flow Errors 6 | . 1 4 . 1 Energy Discharges 7 | . . 5 2 . Parts Rejected 2 | . 1 1 . . Data Loss (minor) 8 | . . 4 1 3 Data Loss (major) 3 | . 1 2 . . Misfires 2 | . 1 1 . . Alerts 1 | . . 1 . . Weapon Failures 2 | . . 2 . . Overload Shots . | . . . . . Overflow Damage 24 | . . 24 . . Projectiles . | . . . . . Explosions 24 | . . 24 . . Melee . | . . . . . Knockbacks . | . . . . . Impact . | . . . . . Kinetic . | . . . . . Secondary . | . . . . . Self-Inflicted Damage 68 | . . 68 . . Shots 2 | . . 2 . . Rammed 10 | . 10 . . . Targets Rammed 11 | . 10 1 . . Kicked . | . . . . . Crushed 1 | . . 1 . . Highest Temperature 351 | . 186 351 . 178 Average Temperature 82 | . 53 108 . 66 Received Heat Transfer 429 | . 285 144 . . Effects 3 | . . 3 . . Short Circuit 1 | . . 1 . . Damage (minor) 2 | . . 2 . . Siege Activations . | . . . . . Robots Corrupted . | . . . . . Combat Hostiles . | . . . . . Parts Fried . | . . . . . Impact Corruptions . | . . . . . Robots Melted 1 | . . 1 . . Combat Hostiles . | . . . . . Parts Melted . | . . . . . Heat Transferred 630 | . . 630 . . Parts Sabotaged . | . . . . . Parts Stolen . | . . . . . Parts Stripped . | . . . . . Power Chain Reactions 3 | . 1 2 . . Missiles Intercepted . | . . . . . Alert | -11 -10 -10 -10 -9 ------- Run | Scr Mat Min Exi Min Peak Influence 256 | . 256 135 . 15 Initial 13 | . . 13 . . Average 68 | . 108 17 . . Maximum Alert Level 1 | . 1 . . . Low Security (%) 90 | 100 84 100 . 100 Level 1 9 | . 15 . . . Level 2 . | . . . . . Level 3 . | . . . . . Level 4 . | . . . . . Level 5 . | . . . . . High Security . | . . . . . Max Security . | . . . . . Squads Dispatched 5 | . 5 . . . Investigation 2 | . 2 . . . Extermination . | . . . . . Reinforcement 3 | . 3 . . . Assault . | . . . . . Garrison . | . . . . . Intercept . | . . . . . Searches Triggered . | . . . . . Construction Impeded . | . . . . . Haulers Reinforced . | . . . . . Active Scanning Responses . | . . . . . Cargo Convoy Interrupts . | . . . . . Stealth | -11 -10 -10 -10 -9 --------- Run | Scr Mat Min Exi Min Distress Signals 2 | . 1 1 . . Communications Jammed . | . . . . . Distress Signals . | . . . . . Times Spotted 58 | . 37 8 . 13 Peak Tracking Total 10 | . 4 2 . 10 Tactical Retreats 3 | . 2 . . 1 Traps | -11 -10 -10 -10 -9 ------- Run | Scr Mat Min Exi Min Traps Triggered 3 | . 3 . . . Indirectly . | . . . . . Trap Hack Attempts . | . . . . . Triggered . | . . . . . Disarmed . | . . . . . Reprogrammed . | . . . . . Reused . | . . . . . Traps Extracted . | . . . . . Installed . | . . . . . Triggered . | . . . . . Exploded 2 | . . . . 2 Machines | -11 -10 -10 -10 -9 ---------- Run | Scr Mat Min Exi Min Machines Disabled . | . . . . . Max in Single Turn . | . . . . . Machines Sabotaged . | . . . . . Garrisons Compromised . | . . . . . Overloaded Fab Kills . | . . . . . Hacking | -11 -10 -10 -10 -9 --------- Run | Scr Mat Min Exi Min Machines Accessed 8 | . 7 . 1 . Terminals 4 | . 4 . . . Fabricators . | . . . . . Repair Stations 1 | . 1 . . . Recycling Units 2 | . 2 . . . Scanalyzers . | . . . . . Garrison Access . | . . . . . Total Hacks 18 | . 17 . 1 . Successful 12 | . 11 . 1 . Failed 6 | . 6 . . . Catastrophic 1 | . 1 . . . Database Lockouts . | . . . . . Manual 11 | . 11 . . . Terminals 9 | . 9 . . . Fabricators . | . . . . . Repair Stations 6 | . 6 . . . Recycling Units 2 | . 2 . . . Scanalyzers . | . . . . . Garrison Access . | . . . . . Terminal Hacks 3 | . 2 . 1 . Record 1 | . . . 1 . Part Schematic 1 | . 1 . . . Locate Traps 1 | . 1 . . . Fabricator Hacks . | . . . . . Repair Station Hacks 6 | . 6 . . . Scan Component 3 | . 3 . . . Repair 3 | . 3 . . . Recycling Unit Hacks . | . . . . . Scanalyzer . | . . . . . Garrison Access Hacks . | . . . . . Unauthorized Hacks 3 | . 3 . . . Terminals 1 | . 1 . . . Botnet 1 | . 1 . . . Fabricators . | . . . . . Repair Stations . | . . . . . Recycling Units 2 | . 2 . . . Tunnel 2 | . 2 . . . Scanalyzers . | . . . . . Garrison Access . | . . . . . Data Cores Recovered . | . . . . . Used . | . . . . . Hacking Detections 5 | . 5 . . . Full Trace Events . | . . . . . Feedback Events . | . . . . . Feedback Blocked . | . . . . . Robot Schematics Acquired . | . . . . . Robots Built . | . . . . . Authchips . | . . . . . Time . | . . . . . Total Robot Build Rating . | . . . . . Part Schematics Acquired 1 | . 1 . . . Parts Built . | . . . . . Authchips . | . . . . . Time . | . . . . . Total Part Build Rating . | . . . . . Parts Repaired 3 | . 3 . . . Time 78 | . 78 . . . Parts Recycled . | . . . . . Recycled Matter . | . . . . . Retrieved Matter . | . . . . . Retrieved Components . | . . . . . Parts Scanalyzed . | . . . . . Part Schematics Acquired . | . . . . . Parts Damaged . | . . . . . Bothacking | -11 -10 -10 -10 -9 ------------ Run | Scr Mat Min Exi Min Used RIF Installer . | . . . . . Robots Hacked 4 | . . . 4 . Non-combat 3 | . . . 3 . Combat 1 | . . . 1 . Robot Hacks Applied 4 | . . . 4 . parse_system 4 | . . . 4 . Relay Couplers Released . | . . . . . Fabnet Peak Effective % . | . . . . . Robots Rewired . | . . . . . Allies Hacked . | . . . . . Hacks Repelled . | . . . . . Allies | -11 -10 -10 -10 -9 -------- Run | Scr Mat Min Exi Min Total Allies . | . . . . . Largest Group . | . . . . . Highest-Rated Group . | . . . . . Highest-Rated Ally . | . . . . . Total Orders . | . . . . . Ally Attacks . | . . . . . Total Damage . | . . . . . Kills . | . . . . . Allies Corrupted . | . . . . . Allies Melted . | . . . . . Intel | -11 -10 -10 -10 -9 ------- Run | Scr Mat Min Exi Min Robot Analysis Total . | . . . . . Derelict Logs Recovered 2 | . . 2 . . Drone Launches . | . . . . . Drone Recoveries . | . . . . . Exploration | -11 -10 -10 -10 -9 ------------- Run | Scr Mat Min Exi Min Turns Passed 4019 | 61 2053 1251 465 189 Spaces Moved 1631 | 33 954 373 188 83 Core 18 | 2 . . . 16 Treads 1585 | 31 954 345 188 67 Legs . | . . . . . Wheels 28 | . . 28 . . Hover . | . . . . . Flight . | . . . . . Fastest Speed 50 | 50 160 145 240 50 Average Speed 198 | 153 178 232 240 203 Slowest Speed 240 | 160 240 240 240 240 Overloaded Moves . | . . . . . Propulsion Burnouts . | . . . . . Robots Hopped . | . . . . . Cave-ins Triggered . | . . . . . Exploration Rate (%) 53 | 3 96 75 59 35 Regions Visited 4 Branch Regions 3 Pre-discovered Areas 4 | . 2 1 1 . Known Exits Taken . | . . . . . Unknown Exits Taken 4 | 1 1 1 1 . Scrap Searched 1 | . . 1 . . Spaces Dug . | . . . . . Terrain Destroyed 17 | . 2 15 . . Melee . | . . . . . Projectile . | . . . . . AOE 17 | . 2 15 . . Terrain Rammed . | . . . . . Walls Destroyed . | . . . . . Machines Disabled . | . . . . . Actions | -11 -10 -10 -10 -9 --------- Run | Scr Mat Min Exi Min Total 2189 | 41 1171 683 203 91 Wait 364 | . 101 263 . . Move 1627 | 32 953 372 187 83 Hop . | . . . . . Pick Up 31 | 3 23 . 5 . Fast Attach 10 | 6 3 1 . . Attach 8 | . . 5 3 . Detach 2 | . . . 2 . Swap 16 | . 8 5 1 2 Drop 10 | . 8 1 1 . Fire 106 | . 65 35 . 6 Melee 4 | . . . 4 . Ram . | . . . . . Kick . | . . . . . Crush 11 | . 10 1 . . Escape Stasis . | . . . . . Rewire . | . . . . . Trap . | . . . . . Miscellaneous . | . . . . . Route ------- -11/Scrapyard -10/Materials (discovered 4 exits: [*Mat x3] / [*Min]) -10/Mines (discovered 3 exits: [*Mat x2] / *Exi) -10/Exiles -9/Mines History --------- Turn | Location | Event 18 | -11/Scrapyard | Discovered new exit (range 16) 62 | -11/Scrapyard | Entered Materials 299 | -10/Materials | Discovered new exit (range 10) 314 | -10/Materials | Build established: Mutant 340 | -10/Materials | Repaired EM Pulse Gun 518 | -10/Materials | Repaired Lgt. Armor Plating 663 | -10/Materials | Discovered new exit (range 15) 911 | -10/Materials | Discovered new exit (range 16) 1251 | -10/Materials | Repaired EM Pulse Gun 1461 | -10/Materials | Discovered new exit (range 9) 2115 | -10/Materials | Entered Mines 2247 | -10/Mines | Discovered new exit (range 3) 2250 | -10/Mines | Learned location of Zion (-6) 2391 | -10/Mines | Discovered new exit (range 3) 2514 | -10/Mines | A weapon hastily lodged in a ceiling crevice suddenly fell to the ground 2723 | -10/Mines | Learned Materials security intel 2749 | -10/Mines | Deemed a non-threat by the Exiles lab entrance 2749 | -10/Mines | Discovered new exit (range 5) 2877 | -10/Mines | Excavation squad dispatched 2877 | -10/Mines | A large section of the Mines collapsed 3127 | -10/Mines | Excavation squad dispatched 3214 | -10/Mines | Core integrity fell below 50% 3360 | -10/Mines | Lost 3 parts (1p1u1w) 3366 | -10/Mines | Entered Exiles 3435 | -10/Exiles | Met 8R-AWN 3476 | -10/Exiles | Met EX-HEX 3545 | -10/Exiles | Met EX-BIN 3633 | -10/Exiles | Met EX-DEC 3810 | -10/Exiles | Discovered new exit (range 11) 3831 | -10/Exiles | Entered Mines 3955 | -9/Mines | Assembled infested the area 3960 | -9/Mines | Assisted by a Guerilla fighting off Assembled 4005 | -9/Mines | Core integrity fell below 20% 4012 | -9/Mines | Released all parts (4) 4020 | -9/Mines | Destroyed by D-53 Grenadier with Mini Grenade Launcher Last Messages --------------- I've been tracking a group of Assembled to figure out where they're coming from, and they're closing on this area, come on!" 03993_ as-04390 destroyed. 03995_ System corrupted: Component data lost. 03996_ Acquired 13 matter. 04001_ Lgt. Nuclear Core destroyed. 04010_ EM Shotgun destroyed. 04012_ Lgt. Armor Plating destroyed. 04012_ Released Hcp. Storage Unit. 04012_ Released Lgt. Treads. 04012_ Released EM Pulse Gun. 04013_ R-06 Scavenger collects Rigged Nuclear Core. 04013_ Extracted 51 matter. 04015_ as-07091 sneak attacks. 04015_ R-06 Scavenger destroyed. 04016_ Unknown Engine explodes. 04016_ as-07091 destroyed. 04016_ as-91956 destroyed. 04017_ Rigged Nuclear Core explodes. 04017_ as-87516 destroyed. Map ----- +----------------------------------------------------+ | ?????????????????????????????????????????????????? | | ?????????????????????????????????????????????????? | | ?????????????????????????????????????????????????? | | ?????????????????????????????????????????????????? | | ?????????????????????????????????????????????????? | | ?????????????????????????????????????????????????? | | ?????????????????????????????????????????????????? | | ?????????????????????????????????????????????????? | | ?????????????????????????????????????????????????? | | ?????????????????????????????????????????????????? | | ?????????????????????????????????????????????????? | | ?????????????????????????????????????????????????? | | ?????????????????????????????????????????????????? | | ?????????????????????????????????????????????????? | | ??????????? ????????????????????????????????????? | | ??????????? ????????????????????????????????????? | | ??????????? ????????????????????????????????????? | | ??????????# ????????????????????????????????????? | | ??????????# ????????????????????????????????????? | | ??????????# ????????????????????????????????????? | | ??????????# ????????????????????????????????????? | | ??????????# #???????????????????????????????????? | | ??????????# #???????????????????????????????????? | | ??????????# #???????######??????????????????????? | | ??????????# #??????## ##?????????????????????? | | ??????????# #??????# @ ######## # #?????????? | | ??????????# #?????## ??????? | | ?????????## #?????# d % ??????? | | ?????????#"=="?????# """ ######## # #?????????? | | ?????????#"%=""""#"# """ #????????????????????? | | ?????????#" %![[! a """ #????????????????????? | | ?????????#" %= %! ##????????????????????? | | ?????????#"""" ";;### ##?????????????????????? | | ??????????????? ????# ####??????????????????????? | | ????????????????????# #?????????????????????????? | | ????????????????????# ##????????????????????????? | | ????????????????????# #????????????????????????? | | ????????????????????## ######???????????????????? | | ?????????????????????# #???????????????????? | | ?????????????????????# #### #???????????????????? | | ?????????????????????# #??# #???????????????????? | | ???????????????####?## ##?# #???????????????????? | | ?????????####?## ### #?# #???????????????????? | | ????????## ## ### #???????????????????? | | ????????# ## #???????????????????? | | ????????# ##??????????????????? | | ?????????# """ ##?????????????????? | | ????????## """ ####??????????????? | | ???????## """ ##?????????????? | | ???????# ## ##????????????? | +----------------------------------------------------+ Best States ------------- Heat Dissipation 25 Energy Generation 14 Energy Capacity 250 Matter Stores 300 Matter Capacity 300 Sight Range 16 Terrain Scan Density 10 Armor Coverage 150 Evasion (%) 50 Recoil Reduction 2 Item Schematics ----------------- Huge Storage Unit | -10/Materials | Hacked Robot Schematics ------------------ None Fabricated ------------ Nothing Alien Tech Used ----------------- None Achievements -------------- None Challenges ------------ None Game ------ Seed HugeTractorLoader Manual? 0 Play Time 00:20:04 Cumulative 256.2 hours Start 2022.04.04 @ 16:48:41 End 2022.04.05 @ 16:28:51 Sessions 5 Manual Loads 0 Difficulty Rogue Special Mode None Game No. 118 Rogue 118 Adventurer 0 Explorer 0 Win Type - Total 6 Types 4/0/0/1/0/0/0/1/0 Lore% 86 Gallery% 88 Achievement% 67 Wizard Run 0 Options --------- ASCII 0 Keyboard 1 Movement Vi Keybinds 0 Fullscreen 2 Font 18/Cog Map View 76x50 Tactical HUD 1 Map Filters NONE Filters NONE Steam 0 RUN: 8f23d784-8b6b-45ec-b33f-36d3fc71d5a5